fUST/lending_fUST_20251211
["ID","MTS","AMOUNT","RATE_DAILY","PERIOD"]
[398222780,1765439918199,-280.47319586,0.0001068,2]
[398222781,1765439920233,-285.11274756,0.0001068,2]
[398222782,1765439930620,-445.57154497,0.0001068,2]
[398222783,1765439933638,-179.34100537,0.0001068,2]
[398222786,1765439937026,-217.53848544,0.0001068,2]
[398222787,1765439938828,-241.23703564,0.0001068,2]
[398222788,1765439941910,-155.48290866,0.0001068,2]
[398222921,1765440632213,-167.36513597,9.294e-05,2]
[398222923,1765440632224,-550.0,9.294e-05,2]
[398222925,1765440632233,-150.0,9.639e-05,2]
[398222926,1765440632243,-400.0,0.00010512,2]
[398222927,1765440632252,-300.0,0.00010671,2]
[398222928,1765440632261,-1200.0,0.00010671,2]
[398222929,1765440632270,-832.30325483,0.00010672,2]
[398222930,1765440632282,-367.69674517,0.00010672,2]
[398222931,1765440632291,-300.0,0.00010672,2]
[398222932,1765440632301,-4835.02578598,0.00010673,2]
[398222933,1765440632311,-181.59062819,0.00010673,2]
[398222934,1765440632320,-514.84070869,0.00010673,2]
[398222935,1765440632330,-259.96751623,0.00010673,2]
[398222967,1765440638297,-139.03248377,0.00010673,2]
[398222969,1765440638307,-152.14529141,0.00010673,2]
[398222971,1765440638317,-2487.15318209,0.00010673,2]
[398222973,1765440638327,-151.47726258,0.00010673,2]
[398222975,1765440638336,-2037.87188724,0.0001068,2]
[398223177,1765440640543,-500.0,0.0001068,2]
[398223248,1765440641185,-3e-08,0.0001068,2]
[398223735,1765440646230,-29146.16688456,0.0001058,2]
[398225668,1765440678339,3731.11,6.67e-05,2]
[398225669,1765440678362,2522.89,6.67e-05,2]
[398231446,1765441832370,-1600.0,0.00010136,2]
[398231448,1765441832380,-331.088,0.00010368,2]
[398231449,1765441832390,-15.11718151,0.00010368,2]
[398231450,1765441832402,-549.88281849,0.00010368,2]
[398231451,1765441832412,-400.0,0.00010368,2]
[398231452,1765441832422,-150.0,0.00010372,2]
[398231453,1765441832433,-300.0,0.00010479,2]
[398231454,1765441832443,-1200.0,0.00010479,2]
[398231455,1765441832452,-8200.76302188,0.0001048,2]
[398231482,1765441838389,-6038.2236702,0.0001048,2]
[398231484,1765441838401,-1865.47717774,0.0001048,2]
[398231734,1765441841044,-92388.0,0.0001048,2]
[398231736,1765441841056,-255.82232218,0.0001048,2]
[398232292,1765441846437,-283.30677948,0.0001048,2]
[398232294,1765441846449,-2464.73851065,0.0001048,2]
[398232309,1765441846580,-342.55454446,0.0001048,2]
[398232496,1765442008339,10000.0,0.00014,30]
[398232501,1765442022339,332.43,0.00014,30]
[398232686,1765442676238,-311.70435685,9.441e-05,2]
[398232688,1765442679002,-151.06190433,9.441e-05,2]
[398232690,1765442681567,-184.05824193,9.441e-05,2]
[398232691,1765442684244,-373.65647307,9.441e-05,2]
[398232693,1765442686898,-243.85553354,9.441e-05,2]
[398232695,1765442688514,-152.72,9.441e-05,2]
[398232698,1765442691828,-422.32902876,9.441e-05,2]
[398232731,1765442693503,-234.10469499,9.441e-05,2]
[398232736,1765442695052,-413.49271773,9.441e-05,2]
[398232748,1765442697666,-213.89822453,9.441e-05,2]
[398232754,1765442699725,-153.11672565,9.441e-05,2]
[398232755,1765442701379,-283.00252879,9.441e-05,2]
[398232756,1765442703368,-328.66932264,9.441e-05,2]
[398232757,1765442706947,-169.63592332,9.441e-05,2]
[398232758,1765442709700,-209.39011964,9.441e-05,2]
[398232759,1765442711788,-338.57873822,9.441e-05,2]
[398232760,1765442713910,-185.97267426,9.441e-05,2]
[398232761,1765442715922,-393.09103063,9.441e-05,2]
[398232773,1765442717522,-219.34304411,9.441e-05,2]
[398232777,1765442718935,-327.99723702,9.441e-05,2]
[398232778,1765442721968,-151.08,9.441e-05,2]
[398232781,1765442724094,-273.96310253,9.441e-05,2]
[398232782,1765442726193,-151.99883395,9.441e-05,2]
[398232785,1765442729402,-214.25074878,9.441e-05,2]
[398232786,1765442732028,-220.93230947,9.441e-05,2]
[398232787,1765442734085,-179.64573251,9.441e-05,2]
[398232788,1765442737891,-154.69700748,9.441e-05,2]
[398232791,1765442741267,-184.26,9.441e-05,2]
[398232792,1765442743267,-306.92937409,9.441e-05,2]
[398232793,1765442745986,-176.24101114,9.441e-05,2]
[398232794,1765442747466,-171.33067736,9.441e-05,2]
[398232795,1765442749016,-256.37505392,9.441e-05,2]
[398232796,1765442752319,-310.37177522,9.441e-05,2]
[398232797,1765442754383,-331.07613419,9.441e-05,2]
[398232798,1765442756900,-378.12062154,9.441e-05,2]
[398232799,1765442759154,-296.72483496,9.441e-05,2]
[398232800,1765442760498,-300.0,9.441e-05,2]
[398232820,1765442819112,-166.96191685,9.441e-05,2]
[398232821,1765442819131,-150.0,9.855e-05,2]
[398232822,1765442819150,-180.17036811,0.0001027,2]
[398232884,1765442960148,-383.82963189,0.0001027,2]
[398232885,1765442960169,-302.364,0.0001027,2]
[398232886,1765442960189,-400.0,0.0001027,2]
[398232887,1765442960208,-174.53600699,0.0001028,2]
[398232888,1765442960229,-1200.0,0.00010315,2]
[398232889,1765442960253,-1200.0,0.00010378,2]
[398232890,1765442960275,-300.0,0.00010378,2]
[398232891,1765442960294,-267.11901367,0.00010379,2]
[398232892,1765442960315,-500.0,0.00010379,2]
[398232893,1765442960335,-500.0,0.00010379,2]
[398232894,1765442960353,-500.0,0.00010379,2]
[398232895,1765442960372,-500.0,0.00010379,2]
[398232896,1765442960392,-500.0,0.00010379,2]
[398232897,1765442960412,-500.0,0.00010379,2]
[398232898,1765442960431,-546.77940561,0.00010379,2]
[398232899,1765442960450,-500.0,0.00010379,2]
[398232900,1765442960470,-500.0,0.00010379,2]
[398232901,1765442960492,-216.21674864,0.00010379,2]
[398232902,1765442960513,-500.0,0.00010379,2]
[398232903,1765442960531,-500.0,0.00010379,2]
[398232904,1765442960549,-500.0,0.00010379,2]
[398232905,1765442960570,-500.0,0.00010379,2]
[398232906,1765442960591,-500.0,0.00010379,2]
[398232907,1765442960611,-500.0,0.00010379,2]
[398232908,1765442960632,-500.0,0.00010379,2]
[398232909,1765442960659,-500.0,0.00010379,2]
[398232910,1765442960681,-500.0,0.00010379,2]
[398232911,1765442960702,-500.0,0.00010379,2]
[398232912,1765442960724,-500.0,0.00010379,2]
[398232913,1765442960748,-500.0,0.00010379,2]
[398232914,1765442960772,-500.0,0.00010379,2]
[398232915,1765442960793,-500.0,0.00010379,2]
[398232916,1765442960813,-500.0,0.00010379,2]
[398232917,1765442960833,-500.0,0.00010379,2]
[398232918,1765442960853,-500.0,0.00010379,2]
[398232919,1765442960873,-500.0,0.00010379,2]
[398232920,1765442960893,-500.0,0.00010379,2]
[398232921,1765442960915,-500.0,0.00010379,2]
[398232922,1765442960936,-500.0,0.00010379,2]
[398232923,1765442960956,-500.0,0.00010379,2]
[398232924,1765442960977,-500.0,0.00010379,2]
[398232925,1765442960996,-500.0,0.00010379,2]
[398232926,1765442961015,-500.0,0.00010379,2]
[398232927,1765442961037,-500.0,0.00010379,2]
[398232928,1765442961058,-500.0,0.00010379,2]
[398232929,1765442961078,-500.0,0.00010379,2]
[398232930,1765442961098,-500.0,0.00010379,2]
[398232931,1765442961118,-500.0,0.00010379,2]
[398232932,1765442961137,-500.0,0.00010379,2]
[398232933,1765442961157,-500.0,0.00010379,2]
[398232934,1765442961178,-500.0,0.00010379,2]
[398232935,1765442961199,-500.0,0.00010379,2]
[398232936,1765442961223,-500.0,0.00010379,2]
[398232937,1765442961243,-500.0,0.00010379,2]
[398232938,1765442961263,-500.0,0.00010379,2]
[398232939,1765442961284,-500.0,0.00010379,2]
[398232940,1765442961304,-500.0,0.00010379,2]
[398232941,1765442961324,-500.0,0.00010379,2]
[398232942,1765442961345,-500.0,0.00010379,2]
[398232943,1765442961367,-500.0,0.00010379,2]
[398232944,1765442961387,-500.0,0.00010379,2]
[398232945,1765442961407,-500.0,0.00010379,2]
[398232946,1765442961429,-500.0,0.00010379,2]
[398232947,1765442961450,-500.0,0.00010379,2]
[398232948,1765442961470,-500.0,0.00010379,2]
[398232949,1765442961494,-500.0,0.00010379,2]
[398232950,1765442961515,-385.84599754,0.00010379,2]
[398232951,1765442961543,-500.0,0.00010379,2]
[398232952,1765442961564,-500.0,0.00010379,2]
[398232954,1765442961584,-500.0,0.00010379,2]
[398232955,1765442961606,-500.0,0.00010379,2]
[398232956,1765442961627,-500.0,0.00010379,2]
[398232957,1765442961647,-500.0,0.00010379,2]
[398232958,1765442961666,-500.0,0.00010379,2]
[398232959,1765442961998,-474.46944108,0.00010379,2]
[398232960,1765442962019,-500.0,0.00010379,2]
[398232961,1765442962038,-357.35741651,0.00010379,2]
[398232962,1765442962059,-500.0,0.00010379,2]
[398232963,1765442962080,-500.0,0.00010379,2]
[398232964,1765442962100,-500.0,0.00010379,2]
[398232965,1765442962119,-500.0,0.00010379,2]
[398232966,1765442962139,-500.0,0.00010379,2]
[398232967,1765442962158,-500.0,0.00010379,2]
[398232968,1765442962177,-500.0,0.00010379,2]
[398232969,1765442962197,-500.0,0.00010379,2]
[398232970,1765442962224,-500.0,0.00010379,2]
[398232971,1765442962252,-424.98859704,0.00010379,2]
[398232972,1765442962275,-500.0,0.00010379,2]
[398232973,1765442962296,-500.0,0.00010379,2]
[398232974,1765442962319,-500.0,0.00010379,2]
[398232975,1765442962341,-500.0,0.00010379,2]
[398232976,1765442962362,-500.0,0.00010379,2]
[398232977,1765442962382,-500.0,0.00010379,2]
[398232978,1765442962403,-500.0,0.00010379,2]
[398232979,1765442962423,-500.0,0.00010379,2]
[398232980,1765442962444,-500.0,0.00010379,2]
[398232981,1765442962466,-500.0,0.00010379,2]
[398232982,1765442962490,-500.0,0.00010379,2]
[398232983,1765442962511,-500.0,0.00010379,2]
[398232984,1765442962532,-500.0,0.00010379,2]
[398232985,1765442962554,-500.0,0.00010379,2]
[398232986,1765442962574,-500.0,0.00010379,2]
[398232987,1765442962596,-500.0,0.00010379,2]
[398232988,1765442962617,-500.0,0.00010379,2]
[398232989,1765442962638,-500.0,0.00010379,2]
[398232990,1765442962658,-500.0,0.00010379,2]
[398232991,1765442962679,-500.0,0.00010379,2]
[398232992,1765442962698,-500.0,0.00010379,2]
[398232993,1765442962718,-500.0,0.00010379,2]
[398232994,1765442962736,-151.93421865,0.00010379,2]
[398232995,1765442962755,-151.95684285,0.00010379,2]
[398232996,1765442962773,-500.0,0.00010379,2]
[398232997,1765442962792,-151.0,0.00010379,2]
[398232998,1765442962811,-151.0,0.00010379,2]
[398232999,1765442962834,-117817.37327113,0.0001038,2]
[398233072,1765443032563,-359.85123496,0.0001027,2]
[398233073,1765443032573,-348.17800085,0.00010373,2]
[398233074,1765443032587,-166.66270784,0.00010373,2]
[398233075,1765443032596,-2487.15318209,0.00010373,2]
[398233076,1765443032605,-1994.43411007,0.00010373,2]
[398233114,1765443038562,-150.0,0.00010322,2]
[398233116,1765443038572,-2840.59167591,0.00010373,2]
[398233118,1765443038582,-399.0,0.00010373,2]
[398233120,1765443038592,-300.0,0.00010379,2]
[398233122,1765443038601,-1200.0,0.00010379,2]
[398233124,1765443038611,-37209.70884378,0.0001038,2]
[398233126,1765443038623,-8581.03043972,0.0001038,2]
[398233130,1765443038650,-1069.39056157,0.0001038,2]
[398233132,1765443038662,-7567.69159903,0.0001038,2]
[398233368,1765443041063,-3e-08,0.0001038,2]
[398233371,1765443041084,-8992.42809648,0.0001038,2]
[398233657,1765443043734,-5414.1020279,0.0001038,2]
[398233964,1765443046600,-1281.70609584,0.0001038,2]
[398233966,1765443046611,-1165.5646,0.0001038,2]
[398233974,1765443046675,-350278.71614165,0.0001038,2]
[398234252,1765443049275,-10000.01,0.0001038,2]
[398234293,1765443049678,-10000.01,0.0001038,2]
[398234325,1765443049984,-10000.01,0.0001038,2]
[398234339,1765443050114,-10000.01,0.0001038,2]
[398234358,1765443050302,-10000.01,0.0001038,2]
[398234362,1765443050529,-10000.01,0.0001038,2]
[398234381,1765443050734,-10000.01,0.0001038,2]
[398234407,1765443050963,-10000.01,0.0001038,2]
[398234430,1765443051167,-10000.01,0.0001038,2]
[398234437,1765443051220,-10000.01,0.0001038,2]
[398234450,1765443051332,-10000.01,0.0001038,2]
[398234465,1765443051467,-10000.01,0.0001038,2]
[398234535,1765443052104,-10000.01,0.0001038,2]
[398235098,1765443058194,-10000.01,0.0001038,2]
[398235742,1765443064606,-500.0,0.00010379,2]
[398235746,1765443064634,-500.0,0.00010379,2]
[398235750,1765443064661,-500.0,0.00010379,2]
[398235754,1765443064688,-564.07586352,0.00010379,2]
[398235758,1765443064716,-500.0,0.00010379,2]
[398235762,1765443064743,-500.0,0.00010379,2]
[398235766,1765443064772,-500.0,0.00010379,2]
[398235770,1765443064798,-500.0,0.00010379,2]
[398235774,1765443064825,-300.0,0.00010379,2]
[398235791,1765443064967,-1271.85827296,0.0001038,2]
[398235795,1765443064995,-10000.01,0.0001038,2]
[398235820,1765443065219,-10000.01,0.0001038,2]
[398235837,1765443065370,-10000.01,0.0001038,2]
[398235842,1765443065410,-10000.01,0.0001038,2]
[398235847,1765443065459,-718.57946683,0.0001038,2]
[398235875,1765443065727,-10000.01,0.0001038,2]
[398235888,1765443065841,-10000.01,0.0001038,2]
[398235904,1765443065977,-10000.01,0.0001038,2]
[398235917,1765443066103,-10000.01,0.0001038,2]
[398236055,1765443067590,-10000.01,0.0001038,2]
[398236448,1765443092054,-501.73776092,0.00010379,2]
[398236449,1765443092082,-500.0,0.00010379,2]
[398236450,1765443092110,-186.58418776,0.00010379,2]
[398236451,1765443092137,-500.0,0.00010379,2]
[398236452,1765443092165,-500.0,0.00010379,2]
[398236453,1765443092192,-500.0,0.00010379,2]
[398236454,1765443092219,-500.0,0.00010379,2]
[398236455,1765443092247,-500.0,0.00010379,2]
[398236456,1765443092397,-2623.36610264,0.0001038,2]
[398236457,1765443092441,-10000.01,0.0001038,2]
[398236458,1765443092779,-10000.01,0.0001038,2]
[398236459,1765443092904,-10000.01,0.0001038,2]
[398236460,1765443093052,-10000.01,0.0001038,2]
[398236461,1765443093223,-10000.01,0.0001038,2]
[398236462,1765443093338,-10000.01,0.0001038,2]
[398236463,1765443111085,-10000.01,0.0001038,2]
[398236464,1765443111614,-10000.01,0.0001038,2]
[398236465,1765443111840,-10000.01,0.0001038,2]
[398236466,1765443111992,-10000.01,0.0001038,2]
[398236467,1765443112147,-10000.01,0.0001038,2]
[398236468,1765443112280,-3991.86551956,0.0001038,2]
[398236469,1765443112308,-2016.27896088,0.0001038,2]
[398236470,1765443122411,300.0,0.00010379,2]
[398236471,1765443124413,174.6081041,0.00010379,2]
[398236472,1765443124443,186.0151283,0.00010379,2]
[398236473,1765443124469,520.93835721,0.00010379,2]
[398236474,1765443124498,500.0,0.00010379,2]
[398236475,1765443124526,500.0,0.00010379,2]
[398236476,1765443125003,500.0,0.00010379,2]
[398236477,1765443125033,500.0,0.00010379,2]
[398236478,1765443125698,500.0,0.00010379,2]
[398236479,1765443125725,500.0,0.00010379,2]
[398236480,1765443125798,500.0,0.00010379,2]
[398236481,1765443125826,235.60428754,0.00010379,2]
[398236482,1765443125936,500.0,0.00010379,2]
[398236483,1765443125976,-251.55573411,0.0001038,2]
[398236484,1765443126567,363.70621939,0.00010379,2]
[398236485,1765443128108,-18.34156989,0.0001038,2]
[398236486,1765443128129,-269.897304,0.0001038,2]
[398236487,1765443128151,-60.205392,0.0001038,2]
[398236488,1765443132650,-209.691912,0.0001038,2]
[398236489,1765443132672,-229.09048026,0.0001038,2]
[398236490,1765443135188,-40.80682374,0.0001038,2]
[398236491,1765443135210,-151.0,0.0001038,2]
[398236492,1765443135232,-6.43556063,0.0001038,2]
[398236494,1765443136664,-272.99885336,0.0001038,2]
[398236495,1765443138174,206.91451156,0.0001028,2]
[398236496,1765443138622,-285.56558601,0.0001038,2]
[398236497,1765443138644,-53.81553423,0.0001038,2]
[398236498,1765443142185,-97.18446577,0.0001038,2]
[398236499,1765443142207,-88.94324496,0.0001038,2]
[398236504,1765443144347,-62.05675504,0.0001038,2]
[398236505,1765443144367,-133.4100553,0.0001038,2]
[398236525,1765443174295,-4012.2233919,0.0001028,2]
[398236526,1765443174706,-10000.01,0.0001028,2]
[398236527,1765443175147,-10000.01,0.0001028,2]
[398236528,1765443175331,-10000.01,0.0001028,2]
[398236529,1765443177136,-10000.01,0.0001028,2]
[398236530,1765443183285,-1200.0,0.00010279,2]
[398236531,1765443183312,-300.0,0.00010279,2]
[398236532,1765443183368,-7000.01,0.0001028,2]
[398236533,1765443186376,-10000.01,0.0001028,2]
[398236534,1765443186582,-10000.01,0.0001028,2]
[398236545,1765443189934,-10000.01,0.0001028,2]
[398236548,1765443192899,-10000.01,0.0001028,2]
[398236585,1765443810236,-169.68191957,9.861e-05,2]
[398236586,1765443810258,-1.25137158,9.861e-05,2]
[398236587,1765443812467,-192.67082222,9.861e-05,2]
[398236588,1765443812488,-52.04529594,9.861e-05,2]
[398236589,1765443815105,-247.52278903,9.861e-05,2]
[398236590,1765443817891,-3.43534284,9.861e-05,2]
[398236591,1765443817913,-172.42652035,9.861e-05,2]
[398236610,1765443936101,-263.46209076,9.861e-05,2]
[398236611,1765443936122,-62.35357132,9.861e-05,2]
[398236612,1765443938036,-184.94039263,9.861e-05,2]
[398236613,1765443938058,-338.74989655,9.861e-05,2]
[398236614,1765443940168,-106.37923856,9.861e-05,2]
[398236615,1765443940196,-59.97026168,9.861e-05,2]
[398236616,1765443946982,-289.75789039,9.861e-05,2]
[398236617,1765443952929,-229.38881095,9.861e-05,2]
[398236618,1765443954654,-212.22372162,9.861e-05,2]
[398236619,1765443954677,-134.86579935,9.861e-05,2]
[398236620,1765443958775,-167.70705394,9.861e-05,2]
[398236621,1765443960823,-472.40651036,9.861e-05,2]
[398236622,1765443964097,-177.39819088,9.861e-05,2]
[398236623,1765443966512,-174.46935936,9.861e-05,2]
[398236624,1765443969242,-109.62290586,9.861e-05,2]
[398236625,1765443969264,-56.58709411,9.861e-05,2]
[398236626,1765443971986,-175.6907337,9.861e-05,2]
[398236627,1765443973543,-471.82151088,9.861e-05,2]
[398236628,1765443975412,-215.83868254,9.861e-05,2]
[398236629,1765443977047,-188.01006919,9.861e-05,2]
[398236630,1765443980374,-272.54262328,9.861e-05,2]
[398236633,1765443983463,-309.99979203,9.861e-05,2]
[398236643,1765444049102,-88.24551817,9.861e-05,2]
[398236644,1765444049126,-150.0,0.00010067,2]
[398236645,1765444049149,-300.0,0.00010272,2]
[398236646,1765444049171,-300.0,0.00010272,2]
[398236647,1765444049192,-1200.0,0.00010273,2]
[398236648,1765444049212,-300.0,0.00010273,2]
[398236649,1765444049233,-300.0,0.00010273,2]
[398236650,1765444049255,-300.0,0.00010273,2]
[398236651,1765444049276,-1200.0,0.00010273,2]
[398236652,1765444049296,-267.11901367,0.00010273,2]
[398236653,1765444049316,-514.84070869,0.00010274,2]
[398236654,1765444049337,-4182.49494393,0.00010274,2]
[398236655,1765444049356,-2487.15318209,0.00010274,2]
[398236656,1765444049376,-399.0,0.00010274,2]
[398236657,1765444049396,-564.0,0.00010278,2]
[398236658,1765444049417,-500.0,0.00010279,2]
[398236659,1765444049439,-500.0,0.00010279,2]
[398236660,1765444049460,-500.0,0.00010279,2]
[398236661,1765444049480,-500.0,0.00010279,2]
[398236662,1765444049501,-500.0,0.00010279,2]
[398236663,1765444049522,-500.0,0.00010279,2]
[398236664,1765444049543,-461.3975357,0.00010279,2]
[398236665,1765444049564,-500.0,0.00010279,2]
[398236666,1765444049585,-500.0,0.00010279,2]
[398236667,1765444049604,-500.0,0.00010279,2]
[398236668,1765444049625,-444.97484453,0.00010279,2]
[398236669,1765444049645,-500.0,0.00010279,2]
[398236670,1765444049665,-165.61975358,0.00010279,2]
[398236671,1765444049685,-500.0,0.00010279,2]
[398236672,1765444049704,-500.0,0.00010279,2]
[398236673,1765444049724,-500.0,0.00010279,2]
[398236674,1765444049743,-500.0,0.00010279,2]
[398236675,1765444049762,-546.77940561,0.00010279,2]
[398236676,1765444049781,-500.0,0.00010279,2]
[398236677,1765444049800,-500.0,0.00010279,2]
[398236678,1765444049820,-500.0,0.00010279,2]
[398236679,1765444049839,-500.0,0.00010279,2]
[398236680,1765444049860,-500.0,0.00010279,2]
[398236681,1765444049879,-500.0,0.00010279,2]
[398236682,1765444049899,-500.0,0.00010279,2]
[398236683,1765444049918,-500.0,0.00010279,2]
[398236684,1765444049937,-500.0,0.00010279,2]
[398236685,1765444049961,-500.0,0.00010279,2]
[398236686,1765444049981,-500.0,0.00010279,2]
[398236687,1765444050001,-500.0,0.00010279,2]
[398236688,1765444050019,-216.21674863,0.00010279,2]
[398236689,1765444050039,-500.0,0.00010279,2]
[398236690,1765444050057,-500.0,0.00010279,2]
[398236691,1765444050077,-500.0,0.00010279,2]
[398236692,1765444050098,-500.0,0.00010279,2]
[398236693,1765444050118,-197.26139779,0.00010279,2]
[398236694,1765444050136,-500.0,0.00010279,2]
[398236695,1765444050156,-500.0,0.00010279,2]
[398236696,1765444050176,-500.0,0.00010279,2]
[398236697,1765444050196,-500.0,0.00010279,2]
[398236698,1765444050216,-500.0,0.00010279,2]
[398236699,1765444050236,-500.0,0.00010279,2]
[398236700,1765444050257,-500.0,0.00010279,2]
[398236701,1765444050278,-500.0,0.00010279,2]
[398236702,1765444050299,-500.0,0.00010279,2]
[398236703,1765444050319,-500.0,0.00010279,2]
[398236704,1765444050338,-500.0,0.00010279,2]
[398236705,1765444050357,-500.0,0.00010279,2]
[398236706,1765444050376,-500.0,0.00010279,2]
[398236707,1765444050396,-500.0,0.00010279,2]
[398236708,1765444050415,-500.0,0.00010279,2]
[398236709,1765444050433,-500.0,0.00010279,2]
[398236710,1765444050453,-121344.58422561,0.0001028,2]
[398236737,1765444231590,-251.7934699,0.00010179,2]
[398236739,1765444231602,-441.0,0.00010179,2]
[398236797,1765444238198,-500.0,0.00010179,2]
[398236799,1765444238208,-357.35741652,0.00010179,2]
[398236801,1765444238219,-500.0,0.00010179,2]
[398236803,1765444238230,-251.22411916,0.00010179,2]
[398236805,1765444238243,-248.77588084,0.00010179,2]
[398236808,1765444238254,-500.0,0.00010179,2]
[398236810,1765444238264,-149.59625717,0.00010179,2]
[398236812,1765444238276,-350.40374283,0.00010179,2]
[398236814,1765444238286,-500.0,0.00010179,2]
[398236816,1765444238297,-500.0,0.00010179,2]
[398236818,1765444238308,-138.15260195,0.00010179,2]
[398237018,1765444240389,-3e-08,0.00010179,2]
[398237311,1765444243086,-361.84739802,0.00010179,2]
[398237313,1765444243097,-406.51765927,0.00010179,2]
[398237315,1765444243107,-500.0,0.00010179,2]
[398237317,1765444243115,-44.63494271,0.00010179,2]
[398237573,1765444245695,-455.36505729,0.00010179,2]
[398237575,1765444245705,-230.5070838,0.00010179,2]
[398237577,1765444245716,-269.4929162,0.00010179,2]
[398237598,1765444245970,-500.0,0.00010179,2]
[398237600,1765444246000,-500.0,0.00010179,2]
[398237602,1765444246022,-500.0,0.00010179,2]
[398237604,1765444246041,-500.0,0.00010179,2]
[398237606,1765444246064,-500.0,0.00010179,2]
[398237608,1765444246088,-500.0,0.00010179,2]
[398237610,1765444246111,-500.0,0.00010179,2]
[398237612,1765444246131,-345.40097188,0.00010179,2]
[398237613,1765444246152,-500.0,0.00010179,2]
[398237615,1765444246173,-500.0,0.00010179,2]
[398237617,1765444246197,-500.0,0.00010179,2]
[398237619,1765444246218,-500.0,0.00010179,2]
[398237621,1765444246235,-500.0,0.00010179,2]
[398237623,1765444246244,-500.0,0.00010179,2]
[398237625,1765444246253,-500.0,0.00010179,2]
[398237627,1765444246263,-500.0,0.00010179,2]
[398237628,1765444246272,-500.0,0.00010179,2]
[398237630,1765444246281,-500.0,0.00010179,2]
[398237632,1765444246290,-500.0,0.00010179,2]
[398237634,1765444246300,-500.0,0.00010179,2]
[398237636,1765444246309,-39.57807829,0.00010179,2]
[398237691,1765444246893,-460.42192171,0.00010179,2]
[398237693,1765444246902,-500.0,0.00010179,2]
[398237695,1765444246913,-500.0,0.00010179,2]
[398237697,1765444246922,-500.0,0.00010179,2]
[398237699,1765444246932,-500.0,0.00010179,2]
[398237701,1765444246941,-46.65323363,0.00010179,2]
[398237703,1765444246952,-300.0,0.00010179,2]
[398237705,1765444246961,-300.0,0.00010179,2]
[398237706,1765444246970,-300.0,0.00010179,2]
[398237708,1765444246979,-563.0,0.00010179,2]
[398237710,1765444246988,-300.0,0.00010179,2]
[398237712,1765444246998,-1200.0,0.00010179,2]
[398237714,1765444247008,-12188.77898666,0.0001018,2]
[398238353,1765444254493,500.19,0.0001,7]
[398240207,1765444911110,-302.364,9.976e-05,2]
[398240208,1765444911132,-182.9753883,0.00010073,2]
[398240220,1765445150972,-286.49077375,0.0001,2]
[398240222,1765445153763,-257.62322985,0.0001,2]
[398240225,1765445157093,-295.12236451,0.0001,2]
[398240227,1765445160756,-238.58205107,0.0001,2]
[398240229,1765445163521,-205.09610458,9.999e-05,2]
[398240231,1765445164983,-94.90389542,9.999e-05,2]
[398240232,1765445165008,-304.54057828,0.0001,2]
[398240236,1765445168468,-269.7846612,0.0001,2]
[398240240,1765445174958,-186.78206719,0.0001,2]
[398240241,1765445176403,-278.43984847,0.0001,2]
[398240243,1765445179100,-166.21,0.0001,2]
[398240246,1765445182055,-151.21737776,0.0001,2]
[398240248,1765445184660,-211.0908018,0.0001,2]
[398240249,1765445186767,-157.80546858,0.0001,2]
[398240251,1765445188749,-187.69703391,0.0001,2]
[398240254,1765445193578,-324.4471519,0.0001,2]
[398240258,1765445201999,-305.99639848,9.999e-05,2]
[398240260,1765445205232,-194.00360152,9.999e-05,2]
[398240261,1765445205256,-170.75171081,9.999e-05,2]
[398240263,1765445207844,-198.34466386,9.999e-05,2]
[398240264,1765445209332,-130.90362533,9.999e-05,2]
[398240265,1765445209357,-169.0568442,9.999e-05,2]
[398240267,1765445213716,-283.52142929,9.999e-05,2]